Cogmind - Beta 11.2 @@@ ROGUE MODE // 2022.12.26 @ 01:38:11 // Winter2022/Polymind Player: KTG-v3 Result: Destroyed by as-18679 with Assembled Rifle Performance ------------- Evolutions (0) 0 Regions Visited (3) 600 Robots Destroyed (14) 70 Value Destroyed (264) 264 Prototype IDs (0) 0 Alien Tech Used (0) 0 Bonus (1485) 1485 TOTAL SCORE: 2189 Bonus ------- Polymind Skill 1410 Follower Combat Kills 113 Friendly Fire -38 Cogmind --------- Core Integrity 0/250 Matter 0/0 Energy 61/100 System Corruption 1% Temperature Cool (0) Movement Core (50) Location -10/Exiles Parts ------- > --- POWER (1) -------- (None) > --- PROPULSION (2) --- (None) > --- UTILITY (3) ------ (None) > --- WEAPON (2) ------- (None) > --- INVENTORY (0) ---- (None) Peak State ------------ > --- POWER ------------ Improved Ion Engine > --- PROPULSION ------- Light Treads Light Treads > --- UTILITY ---------- Heat Sink Heat Sink Light Armor Plating > --- WEAPON ----------- Beam Rifle Heavy Assault Rifle > --- INVENTORY -------- (None) [Rating: 11] Favorites ----------- Power Improved Ion Engine Engine Improved Ion Engine Propulsion Light Treads Treads Light Treads Hover Unit Hover Unit Utility Heat Sink Device Heat Sink Processor Visual Processing Unit Protection Light Armor Plating Weapon Beam Rifle Energy Gun Beam Rifle Ballistic Gun Heavy Assault Rifle Build | -11 -10 -10 -10 ------- Run | Scr Mat Min Exi Slots Evolved . | . . . . Power . | . . . . Propulsion . | . . . . Utility . | . . . . Weapon . | . . . . Parts Attached . | . . . . Power . | . . . . Engine . | . . . . Core . | . . . . Reactor . | . . . . Propulsion . | . . . . Treads . | . . . . Leg . | . . . . Wheel . | . . . . Hover . | . . . . Flight . | . . . . Utility . | . . . . Device . | . . . . Storage . | . . . . Processor . | . . . . Hackware . | . . . . Protection . | . . . . Artifact . | . . . . Weapon . | . . . . Energy Gun . | . . . . Energy Cannon . | . . . . Ballistic Gun . | . . . . Ballistic Cannon . | . . . . Launcher . | . . . . Special Weapon . | . . . . Impact Weapon . | . . . . Slashing Weapon . | . . . . Piercing Weapon . | . . . . Special Melee Weapon . | . . . . Unidentified Prototypes . | . . . . Parts Lost 1 | . . 1 . Power 1 | . . 1 . Propulsion . | . . . . Utility . | . . . . Weapon . | . . . . Highest Loss Streak 1 | . . 1 . To Critical Strikes . | . . . . Average Slot Usage (%) 94 | . 66 96 77 Engine 8 | . 10 9 . Treads 23 | . . 23 22 Hover 1 | . 22 1 . Device 24 | . 10 24 22 Processor 1 | . 22 1 . Protection 11 | . . 11 10 Energy Gun 11 | . . 11 10 Ballistic Gun 11 | . . 11 10 Naked Turns 29 | . 12 . 17 Heaviest Build 18 | . 4 18 11 Greatest Support 40 | 3 12 40 40 Greatest Overweight (x) . | . . . . Average Overweight (x) . | . . . . Largest Inventory Capacity 1 | . . 1 1 Average Capacity . | . . . . Most Carried . | . . . . Average Carried . | . . . . Final Capacity 1 | . . 1 . Final Carried . | . . . . Class Distribution -------------------- 92% | Sentry 5% | Watcher Dominant Class ---------------- Watcher | -10/Materials Sentry | -10/Mines Sentry | -10/Exiles Resources | -11 -10 -10 -10 ----------- Run | Scr Mat Min Exi Matter Collected 145 | . . 145 . Remotely . | . . . . Salvage Created 385 | . . 385 . Parts 20 | . . 20 . Haulers Intercepted . | . . . . Recyclers Shooed . | . . . . Parts Field Recycled . | . . . . Retrieved Matter . | . . . . Parts Self-Destructed . | . . . . Prevented . | . . . . Kills | -11 -10 -10 -10 ------- Run | Scr Mat Min Exi Combat Hostiles Destroyed 7 | . . 7 . Guns 7 | . . 7 . Classes Destroyed 8 | . . 8 . Worker 2 | . . 2 . Tunneler 1 | . . 1 . Recycler 2 | . . 2 . Watcher 1 | . . 1 . Swarmer 2 | . . 2 . Grunt 4 | . . 4 . Sentry 1 | . . 1 . Zionite 1 | . . 1 . Best Kill Streak 2 | . . 2 . Combat Bots Only 2 | . . 2 . Max Kills in Single Turn 1 | . . 1 . Gunslinging . | . . . . Exploded . | . . . . Melee . | . . . . Uniques/NPCs Destroyed . | . . . . Combat | -11 -10 -10 -10 -------- Run | Scr Mat Min Exi Damage Taken 581 | . . 392 189 Core 252 | . . 63 189 Absorbed by Shields . | . . . . Core Remaining (%) 100 | 100 . . . Volleys Fired 37 | . . 37 . Largest 2 | . . 2 . Hottest 79 | . . 79 . Shots Fired 75 | . . 75 . Gun 75 | . . 75 . Cannon . | . . . . Launcher . | . . . . Special . | . . . . Kinetic 38 | . . 38 . Thermal 37 | . . 37 . Explosive . | . . . . Electromagnetic . | . . . . Robot Hit Streak 10 | . . 10 . Robot Miss Streak 2 | . . 2 . Penetration Max . | . . . . Secondary Targets . | . . . . Shots Hit Robots 46 | . . 46 . Core Hits 21 | . . 21 . Critical Kills . | . . . . Critical Parts Destroyed . | . . . . Critical Strikes 3 | . . 3 . Burn 3 | . . 3 . Melee Attacks . | . . . . Impact . | . . . . Slashing . | . . . . Piercing . | . . . . Sneak Attacks . | . . . . Combat Hostiles . | . . . . Follow-up Attacks . | . . . . Damage Inflicted 700 | . . 700 . Guns 700 | . . 700 . Cannons . | . . . . Explosions . | . . . . Melee . | . . . . Ramming . | . . . . Kinetic 331 | . . 331 . Thermal 369 | . . 369 . Explosive . | . . . . Electromagnetic . | . . . . Impact . | . . . . Slashing . | . . . . Piercing . | . . . . Highest Corruption 1 | . 1 1 1 Average Corruption 1 | . 1 1 1 Corruption Purged . | . . . . Corruption Blocked . | . . . . Effects 15 | . . 15 . Message Errors 1 | . . 1 . Matter Fused 5 | . . 5 . Heat Flow Errors 2 | . . 2 . Energy Discharges 1 | . . 1 . Data Loss (minor) 4 | . . 4 . Misfires 1 | . . 1 . Alerts 1 | . . 1 . Overload Shots . | . . . . Overflow Damage . | . . . . Projectiles . | . . . . Explosions . | . . . . Melee . | . . . . Knockbacks . | . . . . Impact . | . . . . Kinetic . | . . . . Secondary . | . . . . Self-Inflicted Damage . | . . . . Shots . | . . . . Rammed . | . . . . Targets Rammed . | . . . . Kicked . | . . . . Crushed . | . . . . Highest Temperature 252 | . . 252 . Average Temperature 61 | . . 61 . Received Heat Transfer 217 | . . 168 49 Siege Activations . | . . . . Robots Corrupted . | . . . . Combat Hostiles . | . . . . Parts Fried . | . . . . Impact Corruptions . | . . . . Robots Melted . | . . . . Combat Hostiles . | . . . . Parts Melted . | . . . . Heat Transferred 1147 | . . 1147 . Parts Sabotaged . | . . . . Parts Stolen . | . . . . Parts Stripped . | . . . . Power Chain Reactions . | . . . . Missiles Intercepted . | . . . . Alert | -11 -10 -10 -10 ------- Run | Scr Mat Min Exi Peak Influence 138 | . 15 138 . Initial 5 | . . 5 . Average 78 | . 1 81 . Maximum Alert Level . | . . . . Low Security (%) 100 | 100 100 100 . Level 1 . | . . . . Level 2 . | . . . . Level 3 . | . . . . Level 4 . | . . . . Level 5 . | . . . . High Security . | . . . . Max Security . | . . . . Squads Dispatched . | . . . . Investigation . | . . . . Extermination . | . . . . Reinforcement . | . . . . Assault . | . . . . Garrison . | . . . . Intercept . | . . . . Searches Triggered . | . . . . Construction Impeded . | . . . . Haulers Reinforced . | . . . . Active Scanning Responses . | . . . . Cargo Convoy Interrupts . | . . . . Stealth | -11 -10 -10 -10 --------- Run | Scr Mat Min Exi Distress Signals . | . . . . Communications Jammed . | . . . . Distress Signals . | . . . . Times Spotted 28 | . 1 18 9 Peak Tracking Total 9 | . 2 3 9 Tactical Retreats . | . . . . Traps | -11 -10 -10 -10 ------- Run | Scr Mat Min Exi Traps Triggered . | . . . . Indirectly . | . . . . Trap Hack Attempts . | . . . . Triggered . | . . . . Disarmed . | . . . . Reprogrammed . | . . . . Reused . | . . . . Traps Extracted . | . . . . Installed . | . . . . Triggered . | . . . . Machines | -11 -10 -10 -10 ---------- Run | Scr Mat Min Exi Machines Disabled . | . . . . Max in Single Turn . | . . . . Machines Sabotaged . | . . . . Garrisons Compromised . | . . . . Overloaded Fab Kills . | . . . . Hacking | -11 -10 -10 -10 --------- Run | Scr Mat Min Exi Machines Accessed 3 | . 2 1 . Terminals 2 | . 2 . . Fabricators . | . . . . Repair Stations . | . . . . Recycling Units . | . . . . Scanalyzers . | . . . . Garrison Access . | . . . . Total Hacks 6 | . 5 1 . Successful 1 | . . 1 . Failed 5 | . 5 . . Catastrophic 3 | . 3 . . Database Lockouts . | . . . . Manual 3 | . 3 . . Terminals 5 | . 5 . . Fabricators . | . . . . Repair Stations . | . . . . Recycling Units . | . . . . Scanalyzers . | . . . . Garrison Access . | . . . . Terminal Hacks 1 | . . 1 . Open Door 1 | . . 1 . Fabricator Hacks . | . . . . Repair Station Hacks . | . . . . Recycling Unit Hacks . | . . . . Scanalyzer . | . . . . Garrison Access Hacks . | . . . . Unauthorized Hacks . | . . . . Terminals . | . . . . Fabricators . | . . . . Repair Stations . | . . . . Recycling Units . | . . . . Scanalyzers . | . . . . Garrison Access . | . . . . Data Cores Recovered . | . . . . Used . | . . . . Hacking Detections 2 | . 2 . . Full Trace Events 2 | . 2 . . Feedback Events 1 | . 1 . . Corruption 1 | . 1 . . Feedback Blocked . | . . . . Robot Schematics Acquired . | . . . . Robots Built . | . . . . Authchips . | . . . . Time . | . . . . Total Robot Build Rating . | . . . . Part Schematics Acquired . | . . . . Parts Built . | . . . . Authchips . | . . . . Time . | . . . . Total Part Build Rating . | . . . . Parts Repaired . | . . . . Time . | . . . . Parts Recycled . | . . . . Recycled Matter . | . . . . Retrieved Matter . | . . . . Retrieved Components . | . . . . Parts Scanalyzed . | . . . . Part Schematics Acquired . | . . . . Parts Damaged . | . . . . Bothacking | -11 -10 -10 -10 ------------ Run | Scr Mat Min Exi Used RIF Installer . | . . . . Robots Hacked 2 | . 1 1 . Non-combat 1 | . 1 . . Combat 1 | . . 1 . Robot Hacks Applied 3 | . 2 1 . map_route 1 | . 1 . . mark_security 1 | . 1 . . find_shortcuts 1 | . . 1 . Relay Couplers Released . | . . . . Fabnet Peak Effective % . | . . . . Robots Rewired . | . . . . Allies Hacked . | . . . . Hacks Repelled . | . . . . Allies | -11 -10 -10 -10 -------- Run | Scr Mat Min Exi Total Allies 3 | . . 3 . Largest Group 2 | . . 2 1 Highest-Rated Group 36 | . . 36 31 Highest-Rated Ally 31 | . . 31 31 Total Orders . | . . . . Ally Attacks 24 | . . 24 . Total Damage 360 | . . 360 . Kills 7 | . . 7 . Allies Corrupted . | . . . . Allies Melted . | . . . . Intel | -11 -10 -10 -10 ------- Run | Scr Mat Min Exi Robot Analysis Total 2 | . 1 1 . Derelict Logs Recovered 1 | . . 1 . Drone Launches . | . . . . Drone Recoveries . | . . . . Exploration | -11 -10 -10 -10 ------------- Run | Scr Mat Min Exi Turns Passed 1557 | 9 39 1412 97 Spaces Moved 1041 | 18 73 866 84 Core 76 | 18 23 1 34 Treads 807 | . . 757 50 Legs . | . . . . Wheels . | . . . . Hover 158 | . 50 108 . Flight . | . . . . Fastest Speed 50 | 50 50 50 50 Average Speed 136 | 50 54 146 115 Slowest Speed 160 | 50 56 160 160 Overloaded Moves . | . . . . Propulsion Burnouts . | . . . . Robots Hopped . | . . . . Cave-ins Triggered . | . . . . Exploration Rate (%) 37 | 4 23 99 23 Regions Visited 3 Branch Regions 2 Pre-discovered Areas . | . . . . Known Exits Taken 1 | . 1 . . Unknown Exits Taken 2 | 1 . 1 . Scrap Searched . | . . . . Spaces Dug . | . . . . Terrain Destroyed . | . . . . Melee . | . . . . Projectile . | . . . . AOE . | . . . . Terrain Rammed . | . . . . Walls Destroyed . | . . . . Machines Disabled . | . . . . Actions | -11 -10 -10 -10 --------- Run | Scr Mat Min Exi Total 1105 | 17 72 932 84 Wait 30 | . . 30 . Move 1038 | 17 72 865 84 Hop . | . . . . Pick Up . | . . . . Fast Attach . | . . . . Attach . | . . . . Detach . | . . . . Swap . | . . . . Drop . | . . . . Fire 37 | . . 37 . Melee . | . . . . Ram . | . . . . Kick . | . . . . Crush . | . . . . Escape Stasis . | . . . . Rewire . | . . . . Trap . | . . . . Miscellaneous . | . . . . Route ------- -11/Scrapyard -10/Materials -10/Mines (discovered 3 exits: [*Mat x2] / [*Exi]) -10/Exiles History --------- Turn | Location | Event 3 | -11/Scrapyard | Discovered new exit (range 15) 10 | -11/Scrapyard | Entered Materials 43 | -10/Materials | Discovered new exit (range 8) 48 | -10/Materials | Identified exit to Mines 49 | -10/Materials | Entered Mines 56 | -10/Mines | Found the Drone Emporium 156 | -10/Mines | Deemed a non-threat by the Exiles lab entrance 516 | -10/Mines | Found a hidden stash of uninstalled traps 557 | -10/Mines | Discovered new exit (range 11) 608 | -10/Mines | Discovered new exit (range 5) 702 | -10/Mines | Escorted by a lone wolf Derelict 714 | -10/Mines | Learned 2 Materials zone layouts 1455 | -10/Mines | Discovered new exit (range 5) 1461 | -10/Mines | Entered Exiles 1461 | -10/Exiles | Accompanied by 1 ally 1498 | -10/Exiles | Met 8R-AWN 1529 | -10/Exiles | Met EX-HEX 1545 | -10/Exiles | Attacked by the Exiles 1550 | -10/Exiles | Core integrity fell below 50% 1555 | -10/Exiles | Core integrity fell below 20% 1558 | -10/Exiles | Destroyed by as-18679 with Assembled Rifle Last Messages --------------- guys. Go see BIN. I can't imagine you'll want to stay in our boring little cave for long, and we could use some help with the project in the back. 01541_ Released control of Y-45 Defender. 01542_ HV Slug penetrates Y-45 Defender. 01542_ HV Slug penetrates Wall. 01544_ HV Slug penetrates Y-45 Defender. 01544_ Y-45 Defender suffers critical hit (Destroy). 01544_ Machine disabled. 01545_ EXILES: Hostile robot within lab perimeter. Defensive protocols time, folks! 01546_ HV Slug penetrates Y-45 Defender. 01546_ Y-45 Defender suffers critical hit (Destroy). 01547_ Y-45 Defender destroyed. 01548_ Acquired 15 Protomatter. 01549_ Penetrated by HV Slug. 01549_ HV Slug penetrates Machine. 01549_ Machine disabled. 01549_ Penetrated by HV Slug. 01549_ HV Slug penetrates Wall. Map ----- +----------------------------------------------------+ | ?????????????????????????????????????????????????? | | ?????????????????????????????????????????????????? | | ?????????????????????????????????????????????????? | | ?????????????????????????????????????????????????? | | ?????????????????????????????????????????????????? | | ?????????????????????????????????????????????????? | | ?????????????????????????????????????????????????? | | ?????????????????????????????????????????????????? | | ?????????????????????????????????????????????????? | | ?????????????????????????????????????????????????? | | ?????????????????????????????????????????????????? | | ?????????????????????????????????????????????????? | | ?????????????????????????????????????????????????? | | ?????????????????????????????????????????????????? | | ?????????????? ?????###?######???????????????????? | | ?????????????? #####"""""""""##?????????????????? | | ????????????? " """ """"##????????????????? | | ????????????? "" " #????????????????? | | ???????????? " """#????????????????? | | ???????????? "a"#???????????#####? | | ???????????? " "##?????????## #? | | ??????????? ""###???????#" #? | | ???????????" """#??????##" ## | | ????????????"" "#????### # | | ???????????????""" ##???# = | | ???????????????#""" @ a ##?## [ ! | | ???????????????#"""" a ### ! | | ???????????????#"" g "# | | ???????????????"""" a a "### | | ??????????????? a " "##""" | | ?????????????? a#"" ####### | | ????????????? ######?????? | | ???????????? a ##??????????? | | ????????????? " ##???????????? | | ????????????? "" """ ""#????????????? | | ???????????????"" " " ""#" "##????????????? | | ????????????????##""" """##"""""""##?????????????? | | ????????????????????"""???#########??????????????? | | ?????????????????????????????????????????????????? | | ?????????????????????????????????????????????????? | | ?????????????????????????????????????????????????? | | ?????????????????????????????????????????????????? | | ?????????????????????????????????????????????????? | | ?????????????????????????????????????????????????? | | ?????????????????????????????????????????????????? | | ?????????????????????????????????????????????????? | | ?????????????????????????????????????????????????? | | ?????????????????????????????????????????????????? | | ?????????????????????????????????????????????????? | | ?????????????????????????????????????????????????? | +----------------------------------------------------+ Best States ------------- Heat Dissipation 36 Energy Generation 17 Energy Capacity 215 Matter Stores 100 Matter Capacity 100 Sight Range 18 Robot Scan Range 14 Terrain Scan Density 10 Armor Coverage 150 Resistance: EX 50 Resistance: I 25 Evasion (%) 53 Recoil Reduction 2 Item Schematics ----------------- None Robot Schematics ------------------ None Fabricated ------------ Nothing Alien Tech Used ----------------- None Achievements -------------- None Challenges ------------ None Polymind | -11 -10 -10 -10 ---------- Run | Scr Mat Min Exi Robots Controlled 2 | . 1 1 . Combat Hostiles 1 | . . 1 . Allies . | . . . . Classes Controlled 2 | . 1 1 . Average Host Suspicion 89 | . 37 96 . Unsuspicious Activity 16 | . 6 10 . Returns to Shadow . | . . . . Fuzzy Dispatches . | . . . . Protomatter Created 96 | . . 81 15 Used 35 | . 12 23 . Decayed . | . . . . Highest Spend 23 | . 12 23 . Top 5 Hosts by Kills: Y-45 Defender (-10/Mines: 7) Game ------ Seed BiocellChainPrototype Manual? 0 Play Time 00:06:00 Cumulative 42.2 hours Start 2022.12.26 @ 01:32:43 End 2022.12.26 @ 01:38:11 Sessions 1 Manual Loads 0 Difficulty Rogue Special Mode Winter2022/Polymind Game No. 16 Rogue 16 Adventurer 0 Explorer 0 Win Type - Total 4 Types 1/0/0/0/0/0/2/0/1 Lore% 37 Gallery% 49 Achievement% 51 Wizard Run 0 Options --------- ASCII 0 Keyboard 0 Movement Mouse Keybinds 0 Fullscreen 1 Font 16/Terminus Map View 76x50 Tactical HUD 1 Map Filters NONE Filters NONE Steam 0 RUN: 53b36352-091d-4005-8b16-c2546bd30717